fUSD/lending_fUSD_20240424
["ID","MTS","AMOUNT","RATE_DAILY","PERIOD"]
[323397399,1713970268279,-882.27,0.00012602,2]
[323397400,1713970268289,-613.15,0.00012602,2]
[323397401,1713970268298,-500.0,0.00012602,2]
[323397402,1713970268308,-500.0,0.00012602,2]
[323397403,1713970268317,-500.0,0.00012602,2]
[323397404,1713970268327,-2307.06,0.00012602,2]
[323397405,1713970268336,-500.0,0.00012602,2]
[323397406,1713970268348,-500.0,0.00012602,2]
[323397407,1713970268358,-3243.17,0.00012602,2]
[323397408,1713970268367,-500.0,0.00012602,2]
[323397409,1713970268377,-862.54,0.00012602,2]
[323397410,1713970268387,-500.0,0.00012602,2]
[323397411,1713970268396,-1387.82,0.00012602,2]
[323397412,1713970268405,-365.02,0.00012602,2]
[323397413,1713970268415,-2543.4,0.00012602,2]
[323397414,1713970268424,-500.0,0.00012602,2]
[323397415,1713970268434,-500.0,0.00012602,2]
[323397416,1713970268443,-500.0,0.00012602,2]
[323397417,1713970268452,-500.0,0.00012602,2]
[323397418,1713970268461,-502.15,0.00012602,2]
[323397419,1713970268471,-1262.43,0.00012602,2]
[323397420,1713970268480,-500.0,0.00012602,2]
[323397421,1713970268489,-500.0,0.00012602,2]
[323397422,1713970268498,-184.04,0.00012602,2]
[323397423,1713970268508,-565.22125933,0.00012602,2]
[323397424,1713970268517,-1315.73,0.00012602,2]
[323397425,1713970268526,-1316.64,0.00012602,2]
[323397426,1713970268536,-3129.25,0.00012602,2]
[323397427,1713970268546,-2816.44,0.00012602,2]
[323397428,1713970268555,-593.38,0.00012602,2]
[323397429,1713970268564,-4905.31,0.00012602,2]
[323397430,1713970268573,-1194.12,0.00012602,2]
[323397431,1713970268583,-500.0,0.00012602,2]
[323397432,1713970268596,-500.0,0.00012602,2]
[323397433,1713970268606,-1391.7,0.00012602,2]
[323397434,1713970268615,-500.0,0.00012602,2]
[323397435,1713970268625,-531.02,0.00012602,2]
[323397436,1713970268635,-1013.54,0.00012602,2]
[323397437,1713970268645,-1394.49,0.00012602,2]
[323397438,1713970268655,-1365.03,0.00012602,2]
[323397439,1713970268665,-1916.7,0.00012602,2]
[323397440,1713970268675,-500.0,0.00012602,2]
[323397441,1713970268686,-3078.47,0.00012602,2]
[323397442,1713970268696,-238.1559713,0.00012602,2]
[323397443,1713970268706,-562.8,0.00012602,2]
[323397444,1713970268716,-899.94,0.00012602,2]
[323397445,1713970268726,-730.52,0.00012602,2]
[323397446,1713970268737,-2615.62,0.00012602,2]
[323397447,1713970268747,-1361.48,0.00012602,2]
[323397448,1713970268757,-2640.73,0.00012602,2]
[323397449,1713970268767,-500.0,0.00012602,2]
[323397450,1713970268777,-500.0,0.00012602,2]
[323397451,1713970268787,-697.36,0.00012602,2]
[323397452,1713970268797,-500.0,0.00012602,2]
[323397453,1713970268811,-990.86,0.00012602,2]
[323397454,1713970268820,-2764.19,0.00012602,2]
[323397455,1713970268841,-402.60518932,0.00012602,2]
[323397456,1713970268853,-500.0,0.00012602,2]
[323397457,1713970268874,-783.72,0.00012602,2]
[323397458,1713970268900,-3152.44,0.00012602,2]
[323397459,1713970268915,-7011.83,0.00012602,2]
[323397460,1713970268927,-2022.73,0.00012602,2]
[323397461,1713970268937,-737.94,0.00012602,2]
[323397462,1713970268947,-500.0,0.00012602,2]
[323397463,1713970268958,-1113.65,0.00012602,2]
[323397464,1713970268970,-1823.7,0.00012602,2]
[323397465,1713970268991,-1402.62,0.00012602,2]
[323397466,1713970269016,-1197.08,0.00012602,2]
[323397467,1713970269036,-500.0,0.00012602,2]
[323397468,1713970269054,-500.0,0.00012602,2]
[323397469,1713970269088,-4348.51,0.00012602,2]
[323397470,1713970269125,-2636.17,0.00012602,2]
[323397471,1713970269144,-3223.85,0.00012602,2]
[323397472,1713970269158,-500.0,0.00012602,2]
[323397473,1713970269181,-4228.42,0.00012602,2]
[323397474,1713970269192,-1504.36,0.00012602,2]
[323397475,1713970269203,-500.0,0.00012602,2]
[323397476,1713970269213,-5620.65,0.00012602,2]
[323397477,1713970269233,-500.0,0.00012602,2]
[323397478,1713970269243,-500.0,0.00012602,2]
[323397479,1713970269253,-1363.17,0.00012602,2]
[323397480,1713970269264,-5224.62,0.00012602,2]
[323397481,1713970269274,-625.96,0.00012602,2]
[323397482,1713970269284,-4374.11,0.00012602,2]
[323397483,1713970269296,-2835.94,0.00012602,2]
[323397484,1713970269306,-5763.87,0.00012602,2]
[323397485,1713970269315,-1465.53,0.00012602,2]
[323397486,1713970269325,-285.46,0.00012602,2]
[323397487,1713970269335,-6108.9,0.00012602,2]
[323397488,1713970269349,-6784.59,0.00012602,2]
[323397489,1713970269364,-500.0,0.00012602,2]
[323397490,1713970269399,-12609.06,0.00012602,2]
[323397491,1713970269408,-1491.28,0.00012602,2]
[323397492,1713970269429,-500.0,0.00012602,2]
[323397493,1713970269446,-500.0,0.00012602,2]
[323397494,1713970269473,-614.86,0.00012602,2]
[323397495,1713970269490,-2609.42,0.00012602,2]
[323397496,1713970269502,-2707.94,0.00012602,2]
[323397497,1713970269513,-500.0,0.00012602,2]
[323397498,1713970269524,-4823.53,0.00012602,2]
[323397499,1713970269536,-11410.81,0.00012602,2]
[323397500,1713970269547,-7407.43,0.00012602,2]
[323397501,1713970269557,-4185.39,0.00012602,2]
[323397502,1713970269578,-500.0,0.00012602,2]
[323397503,1713970269622,-1025.03,0.00012602,2]
[323397504,1713970269635,-1176.77,0.00012602,2]
[323397505,1713970269648,-5110.77,0.00012602,2]
[323397506,1713970269661,-531.57,0.00012602,2]
[323397507,1713970269671,-500.0,0.00012602,2]
[323397508,1713970269682,-2949.43,0.00012602,2]
[323397509,1713970269692,-4511.82,0.00012602,2]
[323397510,1713970269713,-500.0,0.00012602,2]
[323397511,1713970269726,-500.0,0.00012602,2]
[323397512,1713970269757,-4121.9,0.00012602,2]
[323397513,1713970269773,-500.0,0.00012602,2]
[323397514,1713970269785,-14978.16,0.00012602,2]
[323397515,1713970269796,-6957.98,0.00012602,2]
[323397516,1713970269807,-500.0,0.00012602,2]
[323397517,1713970269823,-500.0,0.00012602,2]
[323397518,1713970269835,-500.0,0.00012602,2]
[323397519,1713970269854,-500.0,0.00012602,2]
[323397520,1713970269864,-9490.19,0.00012602,2]
[323397521,1713970269873,-7528.94,0.00012602,2]
[323397522,1713970269883,-4359.94,0.00012602,2]
[323397523,1713970269892,-500.0,0.00012602,2]
[323397524,1713970269902,-500.0,0.00012602,2]
[323397525,1713970269912,-500.0,0.00012602,2]
[323397526,1713970269923,-2968.93,0.00012602,2]
[323397527,1713970269934,-500.0,0.00012602,2]
[323397528,1713970269944,-4584.73,0.00012602,2]
[323397529,1713970269955,-500.0,0.00012602,2]
[323397530,1713970269968,-500.0,0.00012602,2]
[323397531,1713970269980,-11022.37,0.00012602,2]
[323397532,1713970269991,-500.0,0.00012602,2]
[323397533,1713970270002,-500.0,0.00012602,2]
[323397534,1713970270013,-4779.27,0.00012602,2]
[323397535,1713970270023,-1135.13,0.00012602,2]
[323397536,1713970270033,-500.0,0.00012602,2]
[323397537,1713970270043,-3711.59,0.00012602,2]
[323397538,1713970270053,-500.0,0.00012602,2]
[323397539,1713970270063,-1109.42,0.00012602,2]
[323397540,1713970270072,-500.0,0.00012602,2]
[323397541,1713970270083,-500.0,0.00012602,2]
[323397542,1713970270098,-675.38,0.00012602,2]
[323397543,1713970270107,-500.0,0.00012602,2]
[323397544,1713970270117,-500.0,0.00012602,2]
[323397545,1713970270128,-3747.04,0.00012602,2]
[323397546,1713970270137,-500.0,0.00012602,2]
[323397547,1713970270147,-500.0,0.00012602,2]
[323397548,1713970270156,-500.0,0.00012602,2]
[323397549,1713970270166,-500.0,0.00012602,2]
[323397550,1713970270176,-8818.15,0.00012602,2]
[323397551,1713970270186,-500.0,0.00012602,2]
[323397552,1713970270197,-500.0,0.00012602,2]
[323397553,1713970270207,-500.0,0.00012602,2]
[323397554,1713970270218,-645.8,0.00012602,2]
[323397555,1713970270228,-500.0,0.00012602,2]
[323397556,1713970270238,-435.21007233,0.00012602,2]
[323397557,1713970270248,-500.0,0.00012602,2]
[323397558,1713970270258,-500.0,0.00012602,2]
[323397559,1713970270268,-1700.75,0.00012602,2]
[323397560,1713970270278,-500.0,0.00012602,2]
[323397561,1713970270288,-500.0,0.00012605,2]
[323397562,1713970270298,-500.0,0.00012614,2]
[323397563,1713970270309,-500.0,0.00012623,2]
[323397564,1713970270320,-500.0,0.00012632,2]
[323397565,1713970270330,-500.0,0.0001264,2]
[323397566,1713970270345,-500.0,0.00012649,2]
[323397567,1713970270355,-500.0,0.00012658,2]
[323397568,1713970270366,-500.0,0.00012667,2]
[323397569,1713970270376,-500.0,0.00012676,2]
[323397570,1713970270387,-150.0,0.00012682,2]
[323397571,1713970270397,-500.0,0.00012684,2]
[323397572,1713970270407,-500.0,0.00012693,2]
[323397573,1713970270417,-152.18,0.00012694,2]
[323397574,1713970270428,-1000.0,0.000127,4]
[323397575,1713970270438,-500.0,0.00012702,2]
[323397576,1713970270448,-500.0,0.00012711,2]
[323397577,1713970270458,-500.0,0.0001272,2]
[323397578,1713970270469,-150.0,0.00012727,2]
[323397579,1713970270479,-500.0,0.00012728,2]
[323397580,1713970270490,-150.0,0.00012732,2]
[323397581,1713970270500,-583.56628036,0.00012737,2]
[323397582,1713970270510,-500.0,0.00012737,2]
[323397583,1713970270520,-150.0,0.00012741,2]
[323397584,1713970270531,-500.0,0.00012746,2]
[323397585,1713970270541,-3000.0,0.0001275,2]
[323397586,1713970270551,-150.0,0.00012753,2]
[323397587,1713970270561,-500.0,0.00012755,2]
[323397588,1713970270571,-500.0,0.00012764,2]
[323397589,1713970270582,-5800.0,0.00012767,2]
[323397590,1713970270595,-10000.0,0.00012768,2]
[323397591,1713970270605,-168.08270498,0.0001277,2]
[323397592,1713970270615,-1000.0,0.00012772,2]
[323397593,1713970270624,-500.0,0.00012772,2]
[323397594,1713970270634,-168.08270495,0.00012772,2]
[323397595,1713970270644,-500.0,0.00012772,2]
[323397596,1713970270654,-1000.0,0.00012773,2]
[323397597,1713970270664,-1000.0,0.00012773,2]
[323397598,1713970270674,-500.0,0.00012773,2]
[323397599,1713970270683,-168.08270495,0.00012774,2]
[323397600,1713970270692,-5800.0,0.00012775,2]
[323397601,1713970270702,-179.98798159,0.00012776,2]
[323397602,1713970270712,-6230.29094652,0.00012776,2]
[323397603,1713970270722,-160.81057217,0.00012776,2]
[323397604,1713970270731,-168.08270495,0.00012776,2]
[323397605,1713970270742,-150.0,0.00012776,2]
[323397606,1713970270752,-150.0,0.00012779,2]
[323397607,1713970270762,-150.0,0.00012781,2]
[323397608,1713970270773,-500.0,0.00012781,2]
[323397609,1713970270784,-5800.0,0.00012784,2]
[323397610,1713970270795,-150.0,0.00012785,2]
[323397611,1713970270804,-6230.29094646,0.00012786,2]
[323397612,1713970270815,-500.0,0.0001279,2]
[323397613,1713970270824,-5800.0,0.00012792,2]
[323397614,1713970270835,-150.0,0.00012793,2]
[323397615,1713970270848,-155.0,0.00012795,2]
[323397616,1713970270858,-150.0,0.00012796,2]
[323397617,1713970270868,-6230.29094646,0.00012797,2]
[323397618,1713970270879,-500.0,0.00012799,2]
[323397619,1713970270889,-1500.0,0.000128,2]
[323397620,1713970270899,-1500.0,0.000128,2]
[323397621,1713970270909,-1500.0,0.000128,2]
[323397622,1713970270920,-1500.0,0.000128,2]
[323397623,1713970270930,-1500.0,0.000128,2]
[323397624,1713970270940,-1500.0,0.000128,2]
[323397625,1713970270950,-1500.0,0.000128,2]
[323397626,1713970270961,-1500.0,0.000128,2]
[323397627,1713970270973,-1450.99,0.000128,2]
[323397628,1713970270983,-1000.0,0.000128,2]
[323397629,1713970270992,-150.0,0.000128,2]
[323397630,1713970271002,-1773.0,0.000128,4]
[323397631,1713970271014,-6230.29094646,0.00012807,2]
[323397632,1713970271023,-150.0,0.00012808,2]
[323397633,1713970271031,-150.0,0.00012813,2]
[323397634,1713970271038,-150.0,0.00012813,2]
[323397635,1713970271046,-6230.29094646,0.00012818,2]
[323397636,1713970271055,-150.0,0.0001282,2]
[323397637,1713970271064,-6230.29094646,0.00012828,2]
[323397638,1713970271072,-6230.29094646,0.00012839,2]
[323397639,1713970271080,-1000.0,0.00012847,2]
[323397640,1713970271091,-500.0,0.00012849,2]
[323397641,1713970271101,-500.0,0.00012849,2]
[323397642,1713970271109,-500.0,0.00012849,2]
[323397643,1713970271116,-500.0,0.00012849,2]
[323397644,1713970271123,-500.0,0.00012849,2]
[323397645,1713970271130,-500.0,0.00012849,2]
[323397646,1713970271137,-500.0,0.00012849,2]
[323397647,1713970271145,-500.0,0.00012849,2]
[323397648,1713970271152,-500.0,0.00012849,2]
[323397649,1713970271160,-500.0,0.00012849,2]
[323397650,1713970271170,-2922.51,0.00012849,2]
[323397651,1713970271179,-500.0,0.00012849,2]
[323397652,1713970271189,-500.0,0.00012849,2]
[323397653,1713970271199,-500.0,0.00012849,2]
[323397654,1713970271209,-500.0,0.00012849,2]
[323397655,1713970271219,-500.0,0.00012849,2]
[323397656,1713970271229,-500.0,0.00012849,2]
[323397657,1713970271239,-500.0,0.00012849,2]
[323397658,1713970271249,-500.0,0.00012849,2]
[323397659,1713970271260,-500.0,0.00012849,2]
[323397660,1713970271270,-500.0,0.00012849,2]
[323397661,1713970271281,-4391.12,0.00012849,2]
[323397662,1713970271291,-500.0,0.00012849,2]
[323397663,1713970271301,-500.0,0.00012849,2]
[323397664,1713970271311,-1400.66,0.00012849,2]
[323397665,1713970271322,-500.0,0.00012849,2]
[323397666,1713970271646,-500.0,0.00012849,2]
[323397667,1713970271674,-500.0,0.00012849,2]
[323397668,1713970271684,-1115.8,0.00012849,2]
[323397669,1713970271694,-500.0,0.00012849,2]
[323397670,1713970271703,-500.0,0.00012849,2]
[323397671,1713970271713,-523.41,0.00012849,2]
[323397672,1713970271722,-500.0,0.00012849,2]
[323397673,1713970271731,-2493.93,0.00012849,2]
[323397674,1713970271741,-500.0,0.00012849,2]
[323397675,1713970271750,-500.0,0.00012849,2]
[323397676,1713970271760,-500.0,0.00012849,2]
[323397677,1713970271770,-500.0,0.00012849,2]
[323397678,1713970271779,-500.0,0.00012849,2]
[323397679,1713970271789,-500.0,0.00012849,2]
[323397680,1713970271798,-500.0,0.00012849,2]
[323397681,1713970271807,-500.0,0.00012849,2]
[323397682,1713970271817,-500.0,0.00012849,2]
[323397683,1713970271826,-500.0,0.00012849,2]
[323397684,1713970271836,-500.0,0.00012849,2]
[323397685,1713970271848,-866.22,0.00012849,2]
[323397686,1713970271858,-4700.13,0.00012849,2]
[323397687,1713970271868,-500.0,0.00012849,2]
[323397688,1713970271877,-500.0,0.00012849,2]
[323397689,1713970271886,-500.0,0.00012849,2]
[323397690,1713970271896,-500.0,0.00012849,2]
[323397691,1713970271906,-500.0,0.00012849,2]
[323397692,1713970271915,-500.0,0.00012849,2]
[323397693,1713970271925,-500.0,0.00012849,2]
[323397694,1713970271934,-500.0,0.00012849,2]
[323397695,1713970271943,-500.0,0.00012849,2]
[323397696,1713970271953,-500.0,0.00012849,2]
[323397697,1713970271963,-500.0,0.00012849,2]
[323397698,1713970271974,-501.54793538,0.00012849,2]
[323397699,1713970271983,-500.0,0.00012849,2]
[323397700,1713970271993,-500.0,0.00012849,2]
[323397701,1713970272005,-1234.45,0.00012849,2]
[323397702,1713970272016,-500.0,0.00012849,2]
[323397703,1713970272027,-503.36268031,0.00012849,2]
[323397704,1713970272036,-500.0,0.00012849,2]
[323397705,1713970272046,-539.56884426,0.00012849,2]
[323397706,1713970272056,-500.0,0.00012849,2]
[323397707,1713970272065,-500.0,0.00012849,2]
[323397708,1713970272075,-500.0,0.00012849,2]
[323397709,1713970272086,-500.0,0.00012849,2]
[323397710,1713970272100,-500.0,0.00012849,2]
[323397711,1713970272110,-500.0,0.00012849,2]
[323397712,1713970272119,-502.8355586,0.00012849,2]
[323397713,1713970272128,-500.0,0.00012849,2]
[323397714,1713970272138,-500.0,0.00012849,2]
[323397715,1713970272148,-500.0,0.00012849,2]
[323397716,1713970272158,-501.8489051,0.00012849,2]
[323397717,1713970272168,-500.0,0.00012849,2]
[323397718,1713970272177,-500.0,0.00012849,2]
[323397719,1713970272186,-1311.75,0.00012849,2]
[323397720,1713970272196,-959.08,0.00012849,2]
[323397721,1713970272207,-576.23,0.00012849,2]
[323397722,1713970272216,-500.0,0.00012849,2]
[323397723,1713970272226,-500.0,0.00012849,2]
[323397724,1713970272237,-500.0,0.00012849,2]
[323397725,1713970272246,-4155.76,0.00012849,2]
[323397726,1713970272256,-500.0,0.00012849,2]
[323397727,1713970272265,-502.71429502,0.00012849,2]
[323397728,1713970272275,-500.0,0.00012849,2]
[323397729,1713970272285,-500.0,0.00012849,2]
[323397730,1713970272294,-500.0,0.00012849,2]
[323397731,1713970272304,-500.0,0.00012849,2]
[323397732,1713970272313,-1348.77,0.00012849,2]
[323397733,1713970272322,-500.0,0.00012849,2]
[323397734,1713970272332,-501.74716468,0.00012849,2]
[323397735,1713970272345,-500.0,0.00012849,2]
[323397736,1713970272355,-500.0,0.00012849,2]
[323397737,1713970272365,-500.0,0.00012849,2]
[323397738,1713970272375,-1491.06,0.00012849,2]
[323397739,1713970272384,-500.0,0.00012849,2]
[323397740,1713970272394,-500.0,0.00012849,2]
[323397741,1713970272403,-500.0,0.00012849,2]
[323397742,1713970272413,-511.98821885,0.00012849,2]
[323397743,1713970272422,-500.0,0.00012849,2]
[323397744,1713970272431,-503.80555505,0.00012849,2]
[323397745,1713970272441,-4557.69,0.00012849,2]
[323397746,1713970272451,-1411.73,0.00012849,2]
[323397747,1713970272461,-500.0,0.00012849,2]
[323397748,1713970272470,-631.71504838,0.00012849,2]
[323397749,1713970272480,-500.0,0.00012849,2]
[323397750,1713970272489,-500.0,0.00012849,2]
[323397751,1713970272500,-500.0,0.00012849,2]
[323397752,1713970272508,-832.23,0.00012849,2]
[323397753,1713970272517,-501.16608267,0.00012849,2]
[323397754,1713970272527,-500.0,0.00012849,2]
[323397755,1713970272536,-1227.55,0.00012849,2]
[323397756,1713970272546,-2092.42,0.00012849,2]
[323397757,1713970272555,-500.0,0.00012849,2]
[323397758,1713970272564,-500.94635741,0.00012849,2]
[323397759,1713970272574,-502.64603092,0.00012849,2]
[323397760,1713970272584,-676.7,0.00012849,2]
[323397761,1713970272601,-500.0,0.00012849,2]
[323397762,1713970272610,-500.0,0.00012849,2]
[323397763,1713970272620,-500.0,0.00012849,2]
[323397764,1713970272630,-500.0,0.00012849,2]
[323397765,1713970272639,-1119.2,0.00012849,2]
[323397766,1713970272650,-504.3118731,0.00012849,2]
[323397767,1713970272659,-3287.57,0.00012849,2]
[323397768,1713970272670,-503.29981461,0.00012849,2]
[323397769,1713970272680,-500.0,0.00012849,2]
[323397770,1713970272690,-504.73322418,0.00012849,2]
[323397771,1713970272700,-504.98877851,0.00012849,2]
[323397772,1713970272710,-722.53,0.00012849,2]
[323397773,1713970272720,-500.0,0.00012849,2]
[323397774,1713970272729,-500.0,0.00012849,2]
[323397775,1713970272739,-514.45,0.00012849,2]
[323397776,1713970272748,-500.0,0.00012849,2]
[323397777,1713970272758,-10834.23,0.00012849,2]
[323397778,1713970272767,-7684.19,0.00012849,2]
[323397779,1713970272777,-862.62,0.00012849,2]
[323397780,1713970272786,-500.0,0.00012849,2]
[323397781,1713970272795,-500.0,0.00012849,2]
[323397782,1713970272805,-500.0,0.00012849,2]
[323397783,1713970272814,-25080.29,0.00012849,2]
[323397784,1713970272823,-500.0,0.00012849,2]
[323397785,1713970272833,-500.0,0.00012849,2]
[323397786,1713970272848,-500.0,0.00012849,2]
[323397787,1713970272858,-501.9754379,0.00012849,2]
[323397788,1713970272868,-500.0,0.00012849,2]
[323397789,1713970272877,-500.0,0.00012849,2]
[323397790,1713970272886,-500.0,0.00012849,2]
[323397791,1713970272895,-1233.57,0.00012849,2]
[323397792,1713970272904,-10388.73,0.00012849,2]
[323397793,1713970272913,-500.0,0.00012849,2]
[323397794,1713970272922,-500.0,0.00012849,2]
[323397795,1713970272931,-490.79217035,0.00012849,2]
[323397796,1713970272941,-9982.66,0.00012849,2]
[323397797,1713970272951,-500.0,0.00012849,2]
[323397798,1713970272961,-4276.34,0.00012849,2]
[323397799,1713970272973,-500.0,0.00012849,2]
[323397800,1713970272982,-15287.69,0.00012849,2]
[323397801,1713970272991,-3631.11,0.00012849,2]
[323397802,1713970273001,-500.0,0.00012849,2]
[323397803,1713970273013,-500.0,0.00012849,2]
[323397804,1713970273022,-10062.52,0.00012849,2]
[323397805,1713970273033,-1162.09,0.00012849,2]
[323397806,1713970273042,-1242.81,0.00012849,2]
[323397807,1713970273052,-1008.26,0.00012849,2]
[323397808,1713970273062,-9497.14,0.00012849,2]
[323397809,1713970273072,-500.0,0.00012849,2]
[323397810,1713970273082,-500.0,0.00012849,2]
[323397811,1713970273098,-500.0,0.00012849,2]
[323397812,1713970273108,-500.0,0.00012849,2]
[323397813,1713970273118,-19768.3,0.00012849,2]
[323397814,1713970273127,-500.0,0.00012849,2]
[323397815,1713970273137,-500.0,0.00012849,2]
[323397816,1713970273146,-500.0,0.00012849,2]
[323397817,1713970273156,-500.0,0.00012849,2]
[323397818,1713970273166,-500.0,0.00012849,2]
[323397819,1713970273176,-500.0,0.00012849,2]
[323397820,1713970273186,-500.0,0.00012849,2]
[323397821,1713970273196,-500.0,0.00012849,2]
[323397822,1713970273205,-20838.64,0.00012849,2]
[323397823,1713970273215,-871.75,0.00012849,2]
[323397824,1713970273225,-500.0,0.00012849,2]
[323397825,1713970273235,-3794.95,0.00012849,2]
[323397826,1713970273244,-500.0,0.00012849,2]
[323397827,1713970273254,-1427.44,0.00012849,2]
[323397828,1713970273263,-500.0,0.00012849,2]
[323397829,1713970273273,-5569.76,0.00012849,2]
[323397830,1713970273283,-4022.75,0.00012849,2]
[323397831,1713970273293,-500.0,0.00012849,2]
[323397832,1713970273302,-767.37,0.00012849,2]
[323397833,1713970273311,-2868.28,0.00012849,2]
[323397834,1713970273321,-500.0,0.00012849,2]
[323397835,1713970273330,-500.0,0.00012849,2]
[323397836,1713970273343,-500.0,0.00012849,2]
[323397837,1713970273353,-500.0,0.00012849,2]
[323397838,1713970273362,-500.0,0.00012849,2]
[323397839,1713970273372,-2838.69,0.00012849,2]
[323397840,1713970273382,-500.0,0.00012849,2]
[323397841,1713970273392,-500.0,0.00012849,2]
[323397842,1713970273402,-500.0,0.00012849,2]
[323397843,1713970273412,-4121.4,0.00012849,2]
[323397844,1713970273421,-3573.22,0.00012849,2]
[323397845,1713970273431,-500.0,0.00012849,2]
[323397846,1713970273440,-895.81,0.00012849,2]
[323397847,1713970273450,-4158.76,0.00012849,2]
[323397848,1713970273460,-500.0,0.00012849,2]
[323397849,1713970273470,-500.0,0.00012849,2]
[323397850,1713970273479,-500.0,0.00012849,2]
[323397851,1713970273489,-8329.48,0.00012849,2]
[323397852,1713970273499,-500.0,0.00012849,2]
[323397853,1713970273509,-5259.76,0.00012849,2]
[323397854,1713970273518,-500.0,0.00012849,2]
[323397855,1713970273527,-500.0,0.00012849,2]
[323397856,1713970273537,-500.0,0.00012849,2]
[323397857,1713970273546,-6002.48,0.00012849,2]
[323397858,1713970273556,-500.0,0.00012849,2]
[323397859,1713970273565,-500.0,0.00012849,2]
[323397860,1713970273575,-500.0,0.00012849,2]
[323397861,1713970273584,-4700.81,0.00012849,2]
[323397862,1713970273597,-500.0,0.00012849,2]
[323397863,1713970273607,-6230.29094646,0.00012849,2]
[323397864,1713970273616,-5800.0,0.00012851,2]
[323397865,1713970273626,-150.0,0.00012853,2]
[323397866,1713970273636,-5800.0,0.00012859,2]
[323397867,1713970273646,-6230.29094646,0.0001286,2]
[323397868,1713970273656,-150.0,0.00012861,2]
[323397869,1713970273665,-411.56477766,0.00012861,2]
[323397870,1713970273675,-7586.4815538,0.00012865,2]
[323397871,1713970273684,-65967.930098,0.00012865,2]
[323397872,1713970273694,-1926.0816994,0.00012865,2]
[323397873,1713970273704,-10883.90590634,0.00012866,2]
[323397874,1713970273714,-150.0,0.00012867,2]
[323397875,1713970273723,-500.0,0.00012867,2]
[323397876,1713970273732,-500.0,0.00012867,2]
[323397877,1713970273742,-500.03704044,0.00012867,2]
[323397878,1713970273751,-550.20890203,0.00012867,2]
[323397879,1713970273760,-928.0,0.00012867,2]
[323397880,1713970273770,-5800.0,0.00012868,2]
[323397881,1713970273779,-150.0,0.00012869,2]
[323397882,1713970273789,-6230.29094646,0.0001287,2]
[323397883,1713970273798,-324.8206863,0.00012874,2]
[323397884,1713970273808,-1158.65851615,0.00012874,2]
[323397885,1713970273817,-196.98529546,0.00012874,2]
[323397886,1713970273826,-189.2218442,0.00012874,2]
[323397887,1713970273836,-354.33169906,0.00012874,2]
[323397888,1713970273851,-249.76531101,0.00012874,2]
[323397889,1713970273860,-19496.21587412,0.00012875,2]
[323397890,1713970273869,-194.56122769,0.00012875,2]
[323397891,1713970273879,-466.53506152,0.00012875,2]
[323397892,1713970273890,-162.12456104,0.00012875,2]
[323397893,1713970273900,-9806.11678026,0.00012875,2]
[323397894,1713970273909,-1166.03111598,0.00012875,2]
[323397895,1713970273920,-207123.44672502,0.00012875,2]
[323397896,1713970273929,-632284.82217668,0.00012875,2]
[323397897,1713970273941,-50089.00845712,0.00012875,2]
[323397898,1713970273952,-500.0,0.00012875,2]